bitfinex-derivatives/quotes_SOLF0:USTF0_20241215
["timestamp","ask_amount","ask_price","bid_price","bid_amount"]
[1734261847554,2.1,218.04,217.93,6.94207544]
[1734261847859,2.1,218.04,217.94,5.17007884]
[1734261848049,2.1,218.04,217.93,6.94207544]
[1734261848255,2.1,218.04,217.94,5.17060296]
[1734261848551,2.1,218.04,217.93,6.94207544]
[1734261848750,2.1,218.04,217.93,1.5161]
[1734261851962,2.1,218.04,217.94,5.17452313]
[1734261852164,2.1,218.04,217.93,1.5161]
[1734261852357,2.1,218.04,217.94,5.1754839]
[1734261852660,2.1,218.04,217.93,1.5161]
[1734261852855,2.1,218.04,217.94,7.79690228]
[1734261853053,2.1,218.04,217.95,5.17555182]
[1734261853254,2.1,218.04,217.93,1.5161]
[1734261853455,2.1,218.04,217.94,7.79841174]
[1734261853662,2.1,218.04,217.93,1.5161]
[1734261853663,2.1,218.04,217.95,5.1765543]
[1734261853861,2.1,218.04,217.93,1.5161]
[1734261854060,2.1,218.04,217.94,7.79853253]
[1734261854260,2.1,218.04,217.95,5.17662365]
[1734261854456,2.1,218.04,217.93,1.5161]
[1734261854661,2.1,218.04,217.94,2.62239501]
[1734261854863,2.1,218.04,217.94,5.17757864]
[1734261855157,2.1,218.04,217.95,5.17757864]
[1734261855365,2.1,218.04,217.93,1.5161]
[1734261855564,2.1,218.04,217.94,7.80047873]
[1734261855765,2.1,218.04,217.95,5.17793869]
[1734261855966,2.1,218.04,217.93,1.5161]
[1734261856167,2.1,218.04,217.94,7.80050568]
[1734261856365,2.1,218.04,217.95,5.1779546]
[1734261856565,2.1,218.04,217.93,1.5161]
[1734261856762,2.1,218.04,217.94,7.8007718]
[1734261857066,2.1,218.04,217.95,7.80074751]
[1734261857260,2.1,218.04,217.96,5.17818634]
[1734261857461,2.1,218.04,217.93,1.5161]
[1734261857673,2.1,218.04,217.94,7.80148297]
[1734261857964,2.1,218.04,217.95,5.17863981]
[1734261858163,2.1,218.04,217.93,1.5161]
[1734261858366,2.1,218.04,217.94,2.62294358]
[1734261858662,2.1,218.04,217.95,5.17879413]
[1734261858867,2.1,218.04,217.93,1.5161]
[1734261859062,2.1,218.04,217.94,2.62295773]
[1734261859268,2.1,218.04,217.95,5.17875205]
[1734261859474,2.1,218.04,217.96,5.17875205]
[1734261859670,2.1,218.04,217.93,1.5161]
[1734261859870,2.1,218.04,217.94,7.80176023]
[1734261860069,2.1,218.04,217.95,5.1788203]
[1734261860266,2.1,218.04,217.96,5.1788203]
[1734261860471,2.1,218.04,217.93,1.5161]
[1734261860661,2.1,218.04,217.94,7.8021187]
[1734261860866,2.1,218.04,217.93,1.5161]
[1734261867072,2.1,218.04,217.94,5.18105141]
[1734261867273,2.1,218.04,217.93,1.5161]
[1734261867575,2.1,218.04,217.94,5.1815597]
[1734261867871,2.1,218.04,217.93,1.5161]
[1734261868074,2.1,218.04,217.94,7.80611579]
[1734261868271,2.1,218.04,217.95,5.18159931]
[1734261868470,2.1,218.04,217.96,5.18159931]
[1734261868671,2.1,218.04,217.93,1.5161]
[1734261868868,2.1,218.04,217.94,7.80659457]
[1734261869173,2.1,218.04,217.95,7.80671704]
[1734261869374,2.1,218.04,217.93,1.5161]
[1734261869375,2.1,218.04,217.96,5.18192132]
[1734261869574,2.1,218.04,217.93,1.5161]
[1734261869770,2.1,218.04,217.94,7.80703251]
[1734261869966,2.1,218.04,217.93,1.5161]
[1734261869967,2.06,218.03,217.95,7.80710082]
[1734261870177,2.06,218.03,217.96,7.80722972]
[1734261870377,2.06,218.03,217.93,1.5161]
[1734261870378,2.06,218.03,217.97,5.18220464]
[1734261870574,2.06,218.03,217.98,5.18220464]
[1734261870774,2.06,218.03,217.93,1.5161]
[1734261870975,2.06,218.03,217.94,11.20205009]
[1734261871176,2.06,218.03,217.95,11.20205009]
[1734261871378,2.06,218.03,217.96,7.80711191]
[1734261871575,2.06,218.03,217.97,7.80711191]
[1734261871778,2.06,218.03,217.98,5.18234513]
[1734261871977,2.06,218.03,217.93,1.5161]
[1734261872178,2.06,218.03,217.94,11.20277068]
[1734261872375,2.06,218.03,217.95,2.62490632]
[1734261872682,2.06,218.03,217.96,11.20347062]
[1734261872979,2.06,218.03,217.97,7.80803103]
[1734261873180,2.06,218.03,217.93,1.5161]
[1734261873380,2.06,218.03,217.94,11.20429404]
[1734261873581,2.06,218.03,217.95,11.20429404]
[1734261873779,2.06,218.03,217.96,7.8086978]
[1734261873976,2.06,218.03,217.97,5.18332834]
[1734261874175,2.06,218.03,217.98,5.18332834]
[1734261874379,2.06,218.03,217.93,1.5161]
[1734261874578,2.06,218.03,217.94,11.20481454]
[1734261874884,2.06,218.03,217.95,11.20481454]
[1734261875180,2.06,218.03,217.96,7.80905166]
[1734261875385,2.06,218.03,217.97,2.62546994]
[1734261875586,2.06,218.03,217.93,1.5161]
[1734261875781,2.06,218.03,217.94,11.2055023]
[1734261875975,2.06,218.03,217.95,5.18388923]
[1734261876284,2.06,218.03,217.96,5.18388923]
[1734261876485,2.06,218.03,217.93,1.5161]
[1734261876686,2.06,218.03,217.94,11.20563984]
[1734261876886,2.06,218.03,217.95,7.80964259]
[1734261877181,2.06,218.03,217.96,5.18395745]
[1734261877381,2.06,218.03,217.97,5.18392702]
[1734261877691,2.06,218.03,217.93,1.5161]
[1734261877987,2.06,218.03,217.94,11.20553151]
[1734261878182,2.06,218.03,217.95,7.80956391]
[1734261878389,2.06,218.03,217.96,5.18392912]
[1734261878587,2.06,218.03,217.93,1.5161]
[1734261878787,2.06,218.03,217.94,11.20535631]
[1734261878987,2.06,218.03,217.95,7.80944049]
[1734261879190,2.06,218.03,217.96,5.1838327]
[1734261879387,2.06,218.03,217.93,1.5161]
[1734261879589,2.06,218.03,217.94,11.20506921]
[1734261879789,2.06,218.03,217.95,7.80924305]
[1734261879989,2.06,218.03,217.96,5.18371281]
[1734261880188,2.06,218.03,217.93,1.5161]
[1734261880384,2.06,218.03,217.94,11.20491529]
[1734261880587,2.06,218.03,217.95,7.80913123]
[1734261880792,2.06,218.03,217.96,5.18363171]
[1734261880991,2.06,218.03,217.93,1.5161]
[1734261881193,2.06,218.03,217.94,11.20478432]
[1734261881388,2.06,218.03,217.93,1.5161]
[1734261881594,2.06,218.03,217.94,5.1837922]
[1734261881893,2.06,218.03,217.93,1.5161]
[1734261882092,2.06,218.03,217.94,5.1837922]
[1734261882392,2.06,218.03,217.93,1.5161]
[1734261882690,2.06,218.03,217.94,5.18381023]
[1734261882894,2.06,218.03,217.93,1.5161]
[1734261883192,2.06,218.03,217.94,7.8094445]
[1734261883387,2.06,218.03,217.95,7.8094445]
[1734261883589,2.06,218.03,217.96,5.18381075]
[1734261883893,2.06,218.03,217.93,1.5161]
[1734261884192,2.06,218.03,217.94,11.20526587]
[1734261884496,2.06,218.03,217.95,7.80934701]
[1734261884793,2.06,218.03,217.96,5.18374646]
[1734261884993,2.06,218.03,217.93,1.5161]
[1734261885186,2.06,218.03,217.94,11.20546843]
[1734261885388,2.06,218.03,217.95,7.80949119]
[1734261885591,2.06,218.03,217.96,5.18383573]
[1734261885794,2.06,218.03,217.93,1.5161]
[1734261885992,2.06,218.03,217.94,11.20544681]
[1734261886200,2.06,218.03,217.95,7.80947612]
[1734261886494,2.06,218.03,217.96,5.18382573]
[1734261886697,2.06,218.03,217.93,1.5161]
[1734261886893,2.06,218.03,217.94,7.80939188]
[1734261887094,2.06,218.03,217.95,7.80939188]
[1734261887290,2.06,218.03,217.96,5.18377539]
[1734261887591,2.06,218.03,217.93,1.5161]
[1734261887792,2.06,218.03,217.94,7.80928266]
[1734261887993,2.06,218.03,217.95,7.80928266]
[1734261888294,2.06,218.03,217.96,5.18370184]
[1734261888497,2.06,218.03,217.93,1.5161]
[1734261888796,2.06,218.03,217.94,11.20546841]
[1734261889000,2.06,218.03,217.95,7.80948658]
[1734261889188,2.06,218.03,217.96,5.18384134]
[1734261889392,2.06,218.03,217.91,1.5614]
[1734261889695,2.06,218.03,217.92,11.20673115]
[1734261889987,2.06,218.03,217.91,1.5614]
[1734261889988,2.06,218.03,217.93,7.81035292]
[1734261890192,2.06,218.03,217.94,5.18435277]
[1734261890394,2.06,218.03,217.91,1.5614]
[1734261890591,2.06,218.03,217.92,11.20600726]
[1734261890790,2.06,218.03,217.93,11.20600726]
[1734261890992,2.06,218.03,217.94,7.80985329]
[1734261891192,2.06,218.03,217.95,7.80979087]
[1734261891494,2.06,218.03,217.96,5.18398933]
[1734261891693,2.06,218.03,217.91,1.5614]
[1734261891996,2.06,218.03,217.92,11.20580254]
[1734261892296,2.06,218.03,217.93,11.20580254]
[1734261892495,2.06,218.03,217.94,11.20584506]
[1734261892692,2.06,218.03,217.95,7.80972411]
[1734261892900,2.06,218.03,217.96,5.18398933]
[1734261893098,2.06,218.03,217.97,5.18398933]
[1734261893300,2.06,218.03,217.91,1.5614]
[1734261893497,2.06,218.03,217.92,16.63998309]
[1734261893690,2.06,218.03,217.93,11.20612201]
[1734261893896,2.06,218.03,217.94,11.20612201]
[1734261894096,2.06,218.03,217.95,7.80995883]
[1734261894293,2.06,218.03,217.96,7.80995883]
[1734261894597,2.06,218.03,217.97,5.18414083]
[1734261894800,2.06,218.03,217.91,1.5614]
[1734261895003,2.06,218.03,217.92,5.18412438]
[1734261895211,2.06,218.03,217.93,11.20596904]
[1734261895418,2.06,218.03,217.94,11.20596904]
[1734261895623,2.06,218.03,217.95,11.20596904]
[1734261895823,2.06,218.03,217.96,7.80988174]
[1734261896024,2.06,218.03,217.97,5.18412438]
[1734261896219,2.06,218.03,217.91,1.5614]
[1734261896220,2.06,218.03,217.98,5.18412438]
[1734261896419,2.06,218.03,217.91,1.5614]
[1734261896718,2.06,218.03,217.92,16.63815797]
[1734261897024,2.06,218.03,217.93,16.63815797]
[1734261897227,2.06,218.03,217.94,11.20490434]
[1734261897424,2.06,218.03,217.95,11.20490434]
[1734261897726,2.06,218.03,217.91,1.5614]
[1734261897918,2.06,218.03,217.96,5.18348816]
[1734261898223,2.06,218.03,217.91,1.5614]
[1734261898421,2.06,218.03,217.92,11.20478062]
[1734261898622,2.06,218.03,217.93,11.20478062]
[1734261898824,2.06,218.03,217.94,11.20478062]
[1734261899023,2.06,218.03,217.95,7.80902951]
[1734261899230,2.06,218.03,217.96,5.18356441]
[1734261899417,2.06,218.03,217.91,1.5614]
[1734261899721,2.06,218.03,217.92,11.20455894]
[1734261899927,5.46454742,218.06,217.93,11.20455894]
[1734261900221,5.46454742,218.06,217.94,11.20455894]
[1734261900222,2.02,218.05,217.94,11.20455894]
[1734261900414,2.02,218.05,217.95,7.80887519]
[1734261900614,2.02,218.05,217.96,5.18347414]
[1734261900829,2.02,218.05,217.97,5.18334074]
[1734261901013,2.02,218.05,217.91,1.5614]
[1734261901309,2.02,218.05,217.92,11.20447972]
[1734261901605,2.02,218.05,217.93,11.20447972]
[1734261901806,2.02,218.05,217.94,11.20438275]
[1734261902012,67.63581283,218.07,217.95,11.20434519]
[1734261902303,67.63581283,218.07,217.96,12.61934519]
[1734261902304,2.02,218.06,217.96,12.61934519]
[1734261902508,2.02,218.06,217.97,11.20434519]
[1734261902705,2.02,218.06,217.98,11.20434519]
[1734261902900,2.02,218.06,217.99,7.80882102]
[1734261903107,2.02,218.06,218.0,5.18343628]
[1734261903513,2.02,218.06,217.96,1.415]
[1734261903514,2.02,218.06,218.01,5.18343628]
[1734261903905,2.02,218.06,217.96,1.415]
[1734261904102,2.02,218.06,217.97,11.19613213]
[1734261904405,2.02,218.06,217.98,11.19613213]
[1734261904606,2.02,218.06,217.99,7.80304729]
[1734261904904,2.02,218.06,218.0,5.17970044]
[1734261905099,2.02,218.06,217.96,1.415]
[1734261905299,2.02,218.06,217.97,11.19106584]
[1734261905497,2.02,218.06,217.98,11.19106584]
[1734261905700,2.02,218.06,217.99,11.19106584]
[1734261905909,2.02,218.06,218.0,7.79989155]
[1734261906101,2.02,218.06,218.01,5.17802184]
[1734261906305,2.02,218.06,217.96,1.415]
[1734261906502,2.02,218.06,217.97,6.01175373]
[1734261906809,2.02,218.06,217.98,11.18741969]
[1734261907106,2.02,218.06,217.99,11.18741969]
[1734261907306,2.02,218.06,218.0,5.17566596]
[1734261907606,2.02,218.06,217.92,2.02]
[1734261907796,2.02,218.06,217.93,11.18757441]
[1734261907997,2.02,218.06,217.94,11.18757441]
[1734261908200,2.02,218.06,217.95,7.79704449]
[1734261908403,2.02,218.06,217.96,5.17563573]
[1734261908601,2.02,218.06,217.92,3.5002]
[1734261908810,2.02,218.06,217.93,11.1879004]
[1734261909008,2.02,218.06,217.94,11.1879004]
[1734261909308,2.02,218.06,217.95,7.79726018]
[1734261909611,2.02,218.06,217.96,5.17590241]
[1734261909806,2.02,218.06,217.92,3.5002]
[1734261910109,2.02,218.06,217.93,11.18830828]
[1734261910405,2.02,218.06,217.94,11.18830828]
[1734261910607,2.02,218.06,217.95,7.79753135]
[1734261910811,2.02,218.06,217.96,5.17597677]
[1734261911008,2.02,218.06,217.92,1.4802]
[1734261911201,2.02,218.06,217.93,11.18910973]
[1734261911401,2.02,218.06,217.94,7.79807518]
[1734261911607,2.02,218.06,217.95,5.17631548]
[1734261911808,2.02,218.06,217.92,1.4802]
[1734261912007,2.02,218.06,217.93,11.18933755]
[1734261912203,2.02,218.06,217.94,7.79822854]
[1734261912509,2.02,218.06,217.95,5.17642635]
[1734261912711,2.02,218.06,217.92,1.4802]
[1734261912911,2.02,218.06,217.93,11.18960265]
[1734261913204,2.02,218.06,217.92,1.4802]
[1734261913402,2.02,218.06,217.93,11.18959573]
[1734261913601,2.02,218.06,217.94,11.18963363]
[1734261913809,2.02,218.06,217.95,7.79841446]
[1734261914008,2.02,218.06,217.96,5.17653747]
[1734261914205,2.02,218.06,217.97,5.17638725]
[1734261914410,2.02,218.06,217.92,1.4802]
[1734261914606,2.02,218.06,217.93,11.18948983]
[1734261914803,2.02,218.06,217.94,11.18948983]
[1734261915003,2.02,218.06,217.95,7.79834644]
[1734261915207,2.02,218.06,217.96,7.79834644]
[1734261915410,2.02,218.06,217.97,5.17653699]
[1734261915604,2.02,218.06,217.92,1.4802]
[1734261916005,2.02,218.06,217.93,7.79834688]
[1734261916208,2.02,218.06,217.94,11.18949116]
[1734261916408,2.02,218.06,217.95,7.79834688]
[1734261916704,2.02,218.06,217.92,1.4802]
[1734261916705,2.02,218.06,217.96,7.79834688]
[1734261916908,2.02,218.06,217.97,5.17653833]
[1734261917107,2.02,218.06,217.92,1.4802]
[1734261917305,2.02,218.06,217.93,11.18940338]
[1734261917508,2.02,218.06,217.94,11.18940338]
[1734261917708,2.02,218.06,217.95,7.79825798]
[1734261917911,2.02,218.06,217.96,5.17653934]
[1734261918215,2.02,218.06,217.92,1.4802]
[1734261918416,2.02,218.06,217.93,11.18980515]
[1734261918611,2.02,218.06,217.94,11.18980515]
[1734261918811,2.02,218.06,217.95,7.79855872]
[1734261919010,2.02,218.06,217.92,1.4802]
[1734261919211,2.02,218.06,217.93,11.18969041]
[1734261919509,2.2938,218.03,217.97,2.2944]
[1734261919709,2.0,218.02,217.97,2.2944]
[1734261919914,2.0,218.01,217.97,2.2944]
[1734261921416,2.2941,218.0,217.97,2.2944]
[1734261923317,2.2941,218.0,217.92,1.4802]
[1734261923511,2.2941,218.0,217.96,2.2945]
[1734261923714,2.0,218.01,217.92,1.4802]
[1734261923916,2.0,218.01,217.93,5.1766114]
[1734261924113,2.0,218.01,217.94,5.1766114]
[1734261924320,2.0,218.01,217.92,1.4802]
[1734261924518,2.0,218.01,217.93,5.17659318]
[1734261924819,2.0,218.01,217.94,5.17659318]
[1734261925012,2.0,218.01,217.92,1.4802]
[1734261925513,2.0,218.01,217.93,7.79829837]
[1734261925709,2.0,218.01,217.96,2.2945]
[1734261926319,2.0,218.01,217.92,1.4802]
[1734261926320,2.0,218.01,217.95,2.2946]
[1734261926820,2.2945,217.96,217.93,2.2948]
[1734261927618,2.2945,217.96,217.92,1.4802]
[1734261927619,2.2945,217.96,217.94,5.17672209]
[1734261927924,2.2947,217.95,217.92,2.2949]
[1734261928217,2.2947,217.95,217.93,5.17695851]
[1734261928421,2.2945,217.96,217.94,5.17695851]
[1734261928922,2.2945,217.96,217.92,2.2949]
[1734261929124,2.2945,217.96,217.93,7.79876739]
[1734261929315,2.2945,217.96,217.94,5.17674879]
[1734261929520,2.2945,217.96,217.92,2.2949]
[1734261929822,2.2945,217.96,217.93,5.17656625]
[1734261930021,2.2945,217.96,217.94,5.17656625]
[1734261930325,2.2945,217.96,217.93,2.2948]
[1734261930518,2.2945,217.96,217.94,5.17637573]
[1734261930724,2.2945,217.96,217.93,2.2948]
[1734261930925,2.2945,217.96,217.94,5.17637573]
[1734261931124,4.2944,217.97,217.93,2.2948]
[1734261931325,4.2944,217.97,217.94,5.17618924]
[1734261931623,4.2944,217.97,217.93,2.2948]
[1734261931827,4.2944,217.97,217.94,5.17618871]
[1734261932027,4.2944,217.97,217.93,2.2948]
[1734261932222,4.2944,217.97,217.94,5.17612828]
[1734261932425,4.2944,217.97,217.93,2.2948]
[1734261932727,4.2944,217.97,217.94,5.17601885]
[1734261933024,4.2944,217.97,217.93,2.2948]
[1734261933425,4.2944,217.97,217.94,5.17585438]
[1734261933624,4.2944,217.97,217.93,2.2948]
[1734261934327,4.2944,217.97,217.94,5.17566449]
[1734261934522,2.0,217.97,217.91,5.52892925]
[1734261934723,2.0,217.97,217.92,9.30872701]
[1734261935028,2.0,217.97,217.93,7.79711065]
[1734261935226,2.0,217.99,217.94,5.17564609]
[1734261935528,67.63581283,218.07,217.95,5.17564609]
[1734261935731,2.2938,218.04,217.96,11.18681465]
[1734261936023,2.0,218.05,217.97,7.7967127]
[1734261936230,2.0,218.05,218.03,2.2938]
[1734261936530,2.0,218.08,218.03,2.2938]
[1734261937033,4.52,218.14,218.03,2.2938]
[1734261937230,2.2933,218.08,218.03,2.2938]
[1734261937525,4.2933,218.08,218.03,2.2938]
[1734261938226,2.0,218.08,218.03,2.2938]
[1734261938420,2.0,218.08,218.05,2.2936]
[1734261938825,52.5,218.15,218.01,2.0]
[1734261939033,2.2928,218.12,218.02,12.63979604]
[1734261939325,2.2928,218.12,218.03,5.17124838]
[1734261939630,4.2928,218.12,218.07,2.2933]
[1734261945741,4.2928,218.12,218.08,2.2932]
[1734261946831,4.6462,218.22,218.14,2.2926]
[1734261947033,2.0,218.21,218.08,2.0]
[1734261947232,2.9828,218.27,218.08,2.0]
[1734261947432,5.63116213,218.24,218.08,2.0]
[1734261948333,5.63116213,218.24,218.16,2.2924]
[1734261948334,2.292,218.2,218.16,2.2924]
[1734261948533,2.0,218.21,218.08,2.0]
[1734261948838,2.0,218.21,218.09,5.15016311]
[1734261949038,2.2918,218.22,218.08,2.0]
[1734261949339,2.2918,218.22,218.09,7.75284434]
[1734261949538,2.2918,218.22,218.1,5.14639886]
[1734261949737,2.2918,218.22,218.08,2.0]
[1734261949738,2.2918,218.22,218.11,3.0406]
[1734261949935,2.2918,218.22,218.12,2.0]
[1734261950139,2.0,218.23,218.12,2.0]
[1734261951232,4.2917,218.23,218.18,2.2922]
[1734261953940,4.2917,218.23,218.12,2.0]
[1734261953941,2.2918,218.22,218.17,2.2923]
[1734261954138,2.0,218.23,218.11,5.0406]
[1734261954437,2.2918,218.22,218.17,2.2922]
[1734261954836,2.2918,218.22,218.11,5.0406]
[1734261956137,2.2918,218.22,218.14,5.543807]
[1734261956538,2.2918,218.22,218.17,2.2922]
[1734261959938,2.2918,218.22,218.18,2.2922]
[1734261974453,2.2918,218.22,218.19,2.292]
[1734261976849,2.2918,218.22,218.17,5.45988938]
[1734261976850,2.0,218.23,218.21,2.2919]
[1734261977051,2.0,218.25,218.17,5.45988938]
[1734261977353,2.0,218.25,218.22,2.2918]
[1734261978154,2.0,218.25,218.17,5.45988938]
[1734261978155,4.2916,218.25,218.21,2.2919]
[1734261978353,2.0,218.25,218.21,2.2919]
[1734261978555,1.4826,218.27,218.21,2.2919]
[1734261978753,2.2916,218.24,218.21,2.2919]
[1734261979851,2.2916,218.24,218.2,2.292]
[1734261980853,4.2916,218.24,218.2,2.292]
[1734261981752,4.2916,218.24,218.19,2.2921]
[1734261981955,4.2916,218.24,218.17,5.45988938]
[1734261982457,4.2916,218.24,218.18,5.15243926]
[1734261982660,4.2916,218.24,218.21,2.2918]
[1734261982857,4.2914,218.26,218.17,5.45988938]
[1734261983053,4.2914,218.26,218.18,5.15242002]
[1734261983261,4.2914,218.26,218.17,5.45988938]
[1734261983469,4.2914,218.26,218.18,5.15494142]
[1734261983760,4.2914,218.26,218.23,2.2916]
[1734261985965,2.2914,218.26,218.23,2.2916]
[1734261986164,2.2913,218.27,218.24,2.2915]
[1734261992966,2.2913,218.27,218.23,2.2917]
[1734261993865,2.0,218.3,218.22,2.2918]
[1734261993866,2.2914,218.26,218.22,2.2918]
[1734261994074,2.0,218.26,218.18,2.0]
[1734261994466,2.0,218.26,218.16,1.4533]
[1734261994870,2.2917,218.23,218.17,2.2922]
[1734261995072,2.0,218.26,218.16,1.4533]
[1734261995373,2.0,218.26,218.17,5.17279129]
[1734261995671,2.0,218.26,218.16,1.4533]
[1734261995871,2.0,218.26,218.17,5.17267572]
[1734261996172,2.0,218.26,218.16,1.4533]
[1734261996365,2.2919,218.22,218.18,7.70229649]
[1734261996969,2.2919,218.21,218.18,7.70229649]
[1734261997569,2.2919,218.21,218.17,2.2923]
[1734261999769,2.0,218.26,218.14,2.0]
[1734261999978,2.2919,218.22,218.18,2.2922]
[1734262000169,4.2919,218.22,218.18,2.2922]
[1734262004278,2.0,218.22,218.14,2.0]
[1734262004473,4.5225,218.37,218.17,5.5741222]
[1734262004474,2.0,218.25,218.17,5.5741222]
[1734262004682,2.0,218.26,218.18,7.79378256]
[1734262004977,2.2913,218.27,218.22,2.2918]
[1734262005173,2.0,218.26,218.22,2.2918]
[1734262005395,5.48110091,218.32,218.17,5.5741222]
[1734262005579,2.2912,218.29,218.24,2.2915]
[1734262005772,2.0,218.28,218.24,2.2915]
[1734262006379,2.0,218.28,218.25,2.2914]
[1734262006580,2.0,218.3,218.19,2.9028]
[1734262006775,2.0,218.3,218.2,12.62595289]
[1734262006982,2.0,218.3,218.21,11.17875289]
[1734262007174,2.0,218.3,218.2,1.4472]
[1734262007175,2.0,218.3,218.22,11.17875289]
[1734262007378,2.0,218.3,218.28,2.2911]
[1734262007575,2.0,218.31,218.28,2.2911]
[1734262007880,4.5225,218.37,218.22,2.0]
[1734262008075,4.5225,218.37,218.23,8.55617204]
[1734262008272,2.0,218.36,218.24,7.78858556]
[1734262008475,2.0,218.36,218.25,7.78772732]
[1734262008779,2.0,218.36,218.26,7.78772732]
[1734262009078,2.0,218.36,218.27,5.17008863]
[1734262009279,2.0,218.36,218.22,2.0]
[1734262009484,4.2903,218.36,218.3,2.2909]
[1734262009878,2.0,218.36,218.22,2.0]
[1734262010079,2.2906,218.33,218.23,11.16593418]
[1734262010278,2.0,218.36,218.24,5.16595364]
[1734262010481,2.0,218.36,218.22,2.0]
[1734262010678,2.2908,218.32,218.27,2.2913]
[1734262010881,4.2908,218.32,218.27,2.2913]
[1734262011281,2.2909,218.31,218.26,2.2914]
[1734262011482,2.2909,218.31,218.22,2.0]
[1734262013384,2.0,218.32,218.22,2.0]
[1734262013681,2.0,218.32,218.21,2.0]
[1734262014490,2.2912,218.28,218.24,2.2915]
[1734262014892,2.0,218.32,218.24,2.2915]
[1734262015089,2.2911,218.29,218.24,2.2915]
[1734262015490,2.2911,218.29,218.25,2.2914]
[1734262018195,2.0,218.32,218.27,2.2912]
[1734262018196,2.2909,218.31,218.27,2.2912]
[1734262018794,4.2907,218.32,218.28,2.2912]
[1734262020895,2.2908,218.31,218.28,2.2912]
[1734262023603,2.0,218.32,218.21,2.0]
[1734262023792,2.0,218.32,218.29,2.291]
[1734262024899,2.0,218.32,218.3,2.2909]
[1734262025893,2.0,218.32,218.28,2.2911]
[1734262026107,4.2908,218.32,218.28,2.2911]
[1734262026796,2.2909,218.31,218.27,2.2912]
[1734262028003,2.2909,218.31,218.28,2.2911]
[1734262029000,4.2908,218.32,218.21,2.0]
[1734262029195,4.2908,218.32,218.22,5.16181009]
[1734262029196,2.0,218.32,218.22,5.16181009]
[1734262029500,2.0,218.32,218.23,5.16181009]
[1734262029704,2.0,218.32,218.3,2.2908]
[1734262030003,2.2905,218.34,218.3,2.2908]
[1734262031411,4.2904,218.35,218.31,2.2908]
[1734262032605,2.2904,218.35,218.31,2.2908]
[1734262034201,2.0,218.36,218.31,2.2908]
[1734262034400,2.0,218.36,218.26,3.0553]
[1734262034401,2.2906,218.34,218.26,3.0553]
[1734262034602,2.0,218.36,218.26,3.0553]
[1734262034801,2.0,218.36,218.25,2.0]
[1734262035003,2.2909,218.31,218.25,2.0]
[1734262035502,2.2909,218.31,218.24,2.2916]
[1734262035707,2.2909,218.31,218.23,2.0]
[1734262035910,2.0,218.32,218.24,7.77070821]
[1734262036105,2.2907,218.33,218.25,5.15839281]
[1734262036305,2.2907,218.33,218.23,2.0]
[1734262036509,2.2907,218.33,218.24,7.76995796]
[1734262036700,2.2907,218.33,218.25,5.15780921]
[1734262036897,2.2907,218.33,218.23,2.0]
[1734262037103,2.2907,218.33,218.24,7.76992964]
[1734262037403,2.2907,218.33,218.29,2.291]
[1734262039202,2.2906,218.34,218.3,2.2909]
[1734262040200,2.2906,218.34,218.31,2.2908]
[1734262040504,2.2904,218.35,218.31,2.2908]
[1734262040906,2.2904,218.35,218.27,2.0]
[1734262041102,2.2904,218.35,218.32,2.2907]
[1734262041306,189.76693422,218.38,218.27,2.0]